bitfinex/quotes_ETHUSD_20250404
["timestamp","ask_amount","ask_price","bid_price","bid_amount"]
[1743781726967,0.88965055,1797.5,1797.3,5.56389]
[1743781726968,0.8201,1797.5,1797.3,5.56389]
[1743781727171,0.06954704,1797.7,1797.4,5.56331]
[1743781727378,0.06954704,1797.7,1797.5,5.56305]
[1743781727572,0.06954704,1797.7,1797.1,5.5644]
[1743781727573,5.63241519,1797.7,1797.1,5.5644]
[1743781727760,0.56324152,1797.6,1797.1,5.56427]
[1743781727981,0.56324152,1797.6,1796.7,3.7987]
[1743781727982,0.06955319,1797.5,1797.0,5.56458]
[1743781728299,0.8244,1797.4,1796.8,8.56544]
[1743781728453,0.06955742,1797.3,1797.0,5.56478]
[1743781728652,0.06955742,1797.3,1796.6,3.41569089]
[1743781728957,0.06955742,1797.3,1796.8,5.56527]
[1743781729158,5.63345742,1797.3,1796.8,5.56523]
[1743781729357,0.06955742,1797.3,1796.8,5.56523]
[1743781729559,0.06955742,1797.3,1796.8,5.56544]
[1743781729797,0.06955742,1797.3,1796.8,3.0]
[1743781729959,0.06955742,1797.3,1796.9,5.56491]
[1743781730575,0.06955742,1797.3,1797.0,5.56481]
[1743781730803,0.06955742,1797.3,1797.0,11.12944]
[1743781731004,0.06955742,1797.3,1796.9,5.56485]
[1743781731300,0.06955742,1797.3,1796.7,0.41139381]
[1743781731505,0.06955742,1797.3,1797.0,11.1292]
[1743781731710,0.06955742,1797.3,1796.4,0.7987]
[1743781731856,5.56529,1796.9,1796.4,5.56664]
[1743781732061,5.56529,1796.9,1796.3,5.56685]
[1743781732062,0.7924,1796.7,1796.3,5.56685]
[1743781732363,0.7924,1796.7,1796.5,5.56622]
[1743781732554,0.7924,1796.7,1796.5,5.56619]
[1743781732758,0.7924,1796.7,1796.2,5.56729]
[1743781732759,0.7924,1796.7,1796.3,8.56689]
[1743781732994,0.06957911,1796.6,1796.2,5.56715]
[1743781733195,0.06957911,1796.6,1796.3,5.56676]
[1743781733354,0.06957911,1796.6,1796.4,5.56657]
[1743781733559,0.7924,1796.7,1796.5,5.56637]
[1743781733961,0.7924,1796.7,1796.6,5.56606]
[1743781734182,0.06958054,1796.9,1796.6,5.56606]
[1743781734502,7.5668,1797.0,1796.5,5.56631]
[1743781734711,7.5668,1797.0,1796.8,5.56531]
[1743781734911,0.06956465,1797.2,1796.9,5.56513]
[1743781735097,0.06956465,1797.2,1796.9,5.56499]
[1743781735793,0.06956465,1797.2,1796.9,5.56496]
[1743781735993,0.89696108,1797.3,1797.0,5.56462]
[1743781736189,0.06955837,1797.5,1797.1,5.56452]
[1743781736493,0.7693,1797.9,1797.5,11.12646]
[1743781736688,0.7693,1797.9,1797.7,5.56245]
[1743781736889,5.56096,1798.3,1797.5,0.8179]
[1743781736890,0.7693,1798.3,1797.5,0.8179]
[1743781737088,0.7693,1798.3,1797.9,5.56183]
[1743781737382,0.0695183,1798.2,1797.7,5.56258]
[1743781737603,5.6307483,1798.2,1797.7,5.56251]
[1743781737920,5.56148,1798.1,1797.3,8.5636]
[1743781738113,0.06953633,1798.0,1797.5,5.56308]
[1743781738307,0.06953633,1798.0,1797.7,5.56243]
[1743781738510,6.814,1798.1,1797.8,5.56232]
[1743781738709,0.06952554,1798.0,1797.6,5.56289]
[1743781739021,0.06952554,1798.0,1797.5,5.56325]
[1743781739022,0.06952554,1798.0,1797.5,5.56326]
[1743781739208,0.06952554,1798.0,1797.2,0.7993]
[1743781739209,0.06952554,1798.0,1797.6,5.5627]
[1743781739524,0.06952554,1798.0,1797.6,5.56294]
[1743781739888,0.06952554,1798.0,1797.4,5.56356]
[1743781740088,0.7729,1797.9,1797.4,5.56356]
[1743781740317,0.06953833,1797.8,1797.4,5.56337]
[1743781740505,0.06953748,1798.0,1797.9,5.5618]
[1743781740686,0.06952794,1798.1,1797.8,11.12442]
[1743781740995,0.0695251,1798.3,1798.1,5.5613]
[1743781741197,0.06951788,1798.4,1798.1,5.56126]
[1743781741424,0.8186,1798.5,1798.2,5.56111]
[1743781741719,0.8186,1798.5,1798.4,5.56049]
[1743781741928,0.8186,1798.5,1798.2,5.5611]
[1743781742092,0.06951172,1798.9,1798.2,0.55611]
[1743781742280,0.7774,1798.8,1798.5,5.56005]
[1743781742691,0.06950068,1798.7,1798.4,5.56047]
[1743781742924,0.06950068,1798.7,1798.2,5.56111]
[1743781743123,0.06950068,1798.7,1797.8,5.56234]
[1743781743124,5.56018,1798.5,1797.8,5.56234]
[1743781743433,0.55,1798.3,1797.8,5.56214]
[1743781743723,0.7993,1798.1,1797.6,5.56288]
[1743781744028,0.06953007,1798.0,1797.4,0.556337]
[1743781744229,0.06953007,1798.0,1797.6,5.56283]
[1743781744398,0.06953007,1798.0,1797.8,5.56231]
[1743781744725,6.812,1798.5,1797.9,0.556231]
[1743781744929,0.06951466,1798.4,1797.9,5.56187]
[1743781745110,0.06951466,1798.4,1798.1,5.5613]
[1743781745328,6.88151378,1798.5,1798.2,5.56106]
[1743781745497,6.88151378,1798.5,1798.0,5.56171]
[1743781745701,0.06951117,1798.4,1797.5,3.7576]
[1743781745902,5.63010117,1798.4,1797.8,5.56235]
[1743781746092,5.63010117,1798.4,1797.9,5.56189]
[1743781746290,6.812,1798.5,1798.1,5.56121]
[1743781746509,6.88150903,1798.5,1798.1,5.56113]
[1743781746801,6.88150903,1798.5,1798.2,5.56096]
[1743781746802,0.06950903,1798.5,1798.2,5.56096]
[1743781746990,0.06950903,1798.5,1798.3,5.56077]
[1743781747186,0.8271,1798.6,1798.0,5.56173]
[1743781747532,0.8265,1798.9,1798.6,5.55975]
[1743781747892,0.06949675,1798.8,1798.4,5.56031]
[1743781748085,0.8265,1798.9,1798.1,9.117303]
[1743781748086,0.06949675,1798.9,1798.1,9.117303]
[1743781748318,0.8105,1799.2,1798.9,5.55866]
[1743781748520,0.06948014,1799.1,1798.4,3.8161]
[1743781748735,0.87998438,1799.2,1798.9,5.55877]
[1743781748900,0.8105,1799.2,1798.9,11.11758]
[1743781749123,0.06948013,1799.1,1798.6,5.55962]
[1743781749326,5.62796013,1799.1,1798.6,5.55962]
[1743781749637,0.06948013,1799.1,1798.8,5.55906]
[1743781749841,0.8105,1799.2,1798.9,5.55873]
[1743781750042,0.06948011,1799.1,1798.6,5.55972]
[1743781750210,0.06948011,1799.1,1798.4,9.37632]
[1743781750413,0.06949532,1799.0,1798.7,5.55956]
[1743781750614,0.06948865,1799.2,1799.1,5.55833]
[1743781750831,0.81947882,1799.5,1799.0,5.5584]
[1743781751030,3.81947882,1799.5,1799.1,5.55824]
[1743781751356,0.81947882,1799.5,1799.3,5.55753]
[1743781751515,0.87806796,1799.8,1799.1,6.35396]
[1743781751739,5.55678,1799.7,1799.2,5.55788]
[1743781751986,0.06946886,1799.6,1799.3,5.5576]
[1743781752291,0.06946886,1799.6,1799.0,5.5584]
[1743781752488,0.06946886,1799.6,1798.8,0.7958]
[1743781752489,0.63206675,1799.6,1798.8,0.7958]
[1743781752778,6.35204,1799.5,1799.0,5.55862]
[1743781752953,5.6269489,1799.4,1798.9,11.11765]
[1743781753152,5.6269489,1799.4,1798.9,5.55882]
[1743781753349,5.55832,1799.2,1798.6,5.97000982]
[1743781753687,0.7949,1799.0,1798.4,5.56049]
[1743781753843,0.06949606,1798.9,1798.5,5.56002]
[1743781754179,6.27079367,1798.9,1798.4,5.56046]
[1743781754383,5.55957,1798.7,1798.2,5.56107]
[1743781754541,0.06950696,1798.9,1798.6,5.55963]
[1743781754742,0.8935963,1799.7,1798.9,0.8245]
[1743781754946,5.557,1799.6,1799.0,5.55846]
[1743781755249,0.06947265,1799.5,1799.2,5.55773]
[1743781755565,0.06947265,1799.5,1799.0,11.11709]
[1743781755769,5.62659265,1799.5,1799.0,5.55847]
[1743781756390,0.06947265,1799.5,1799.1,5.55809]
[1743781756588,0.89357346,1799.7,1799.2,3.0]
[1743781756744,0.05,1799.9,1799.7,5.55646]
[1743781757140,0.05,1799.9,1799.8,5.55617]
[1743781757489,1e-05,1799.9,1799.8,10.477033]
[1743781757693,1e-05,1799.9,1799.8,7.477033]
[1743781757874,1e-05,1799.9,1799.7,5.55646]
[1743781757875,1e-05,1799.9,1799.6,6.36636]
[1743781758195,1e-05,1799.9,1799.6,5.55663]
[1743781758339,1e-05,1799.9,1799.0,0.75]
[1743781758340,0.7748,1799.8,1799.0,0.75]
[1743781758685,1e-05,1799.9,1799.0,0.75]
[1743781758686,1e-05,1799.9,1799.4,5.55733]
[1743781758866,1e-05,1799.9,1799.2,0.41290443]
[1743781758867,1e-05,1799.9,1799.8,5.55617]
[1743781759070,1e-05,1799.9,1799.8,1.11126]
[1743781759270,1e-05,1799.9,1799.8,6.66743]
[1743781759693,1e-05,1799.9,1799.8,17.23163]
[1743781760461,0.06942141,1800.7,1800.4,5.55426]
[1743781760657,0.7807,1800.8,1800.4,5.55426]
[1743781760896,0.05,1800.9,1800.7,5.55325]
[1743781761187,0.05,1800.9,1800.7,5.55335]
[1743781761344,0.05,1800.9,1800.5,0.555426]
[1743781761550,0.05,1800.9,1800.3,6.803]
[1743781761787,0.05,1800.9,1800.4,5.97926817]
[1743781762094,0.05,1800.9,1800.7,11.10637]
[1743781762260,0.05,1800.9,1800.7,5.55316]
[1743781762594,0.05,1800.9,1800.8,6.33958]
[1743781762748,0.05,1800.9,1800.8,7.528854]
[1743781763387,0.05,1800.9,1800.6,5.55362]
[1743781763688,0.05,1800.9,1800.4,5.55417]
[1743781763892,0.7559,1800.6,1800.1,11.11031]
[1743781764103,0.7559,1800.6,1800.2,5.55481]
[1743781764325,0.7559,1800.6,1799.8,1.87826]
[1743781764326,5.55463,1800.3,1799.8,1.87826]
[1743781764507,5.55439,1800.4,1799.8,5.55603]
[1743781764827,0.18642231,1800.3,1799.7,5.55641]
[1743781764985,0.11698507,1800.3,1800.2,5.55493]
[1743781765186,0.06942778,1800.7,1800.0,0.8158]
[1743781765391,0.11619832,1800.6,1800.4,5.55403]
[1743781765699,0.05,1800.9,1800.6,5.55343]
[1743781765910,0.05,1800.9,1800.7,5.5532]
[1743781766117,0.05,1800.9,1800.8,5.55308]
[1743781766936,0.11940053,1800.9,1800.2,5.55475]
[1743781767227,0.06942105,1800.8,1800.3,5.55439]
[1743781767585,5.55359,1800.7,1800.2,6.192795]
[1743781767786,5.55462,1800.4,1799.8,5.55602]
[1743781767985,11.17858353,1800.4,1799.9,5.55574]
[1743781768186,0.06943353,1800.4,1799.6,0.8262]
[1743781768403,5.62376353,1800.4,1799.9,5.55565]
[1743781768620,5.55478,1800.3,1799.7,5.55647]
[1743781768790,0.06944325,1800.2,1799.8,5.55606]
[1743781768992,0.8062,1800.5,1800.0,5.55531]
[1743781769247,0.87563201,1800.5,1799.9,5.55584]
[1743781769534,0.8062,1800.5,1800.2,5.55492]
[1743781769828,0.8062,1800.5,1800.2,5.55488]
[1743781770128,6.34111,1800.8,1800.2,1.111011]
[1743781770341,0.788,1800.8,1800.3,5.55444]
[1743781770630,5.62301947,1800.7,1800.1,6.34994]
[1743781770807,5.62301947,1800.7,1800.2,11.10955]
[1743781771326,5.6228718,1800.7,1800.2,5.55491]
[1743781771630,0.788,1800.8,1800.3,5.55451]
[1743781771833,5.55354,1800.7,1800.2,5.55493]
[1743781772032,5.55354,1800.7,1800.0,5.55533]
[1743781772237,0.7862,1800.5,1799.7,6.194727]
[1743781772439,0.7947,1800.0,1799.7,5.55644]
[1743781772637,0.7947,1800.0,1799.5,6.33866]
[1743781772944,6.35047,1800.0,1799.2,0.7747]
[1743781773246,3.0,1800.4,1799.2,0.7747]
[1743781773247,0.7947,1800.2,1799.9,5.55563]
[1743781773539,7.5487,1800.5,1800.1,5.55507]
[1743781773842,13.10291,1800.5,1800.0,11.666463]
[1743781774040,13.10272,1800.5,1800.1,5.5552]
[1743781774288,5.55433,1800.4,1800.0,6.111013]
[1743781774435,5.55472,1800.3,1799.9,5.55584]
[1743781774634,7.5487,1800.5,1800.1,5.5551]
[1743781774837,7.61813299,1800.5,1800.1,5.5551]
[1743781775053,13.17216299,1800.5,1800.0,5.55539]
[1743781775252,7.5487,1800.5,1800.2,5.55492]
[1743781775678,7.5487,1800.5,1800.2,5.55489]
[1743781775837,5.55339,1800.7,1800.2,11.10969]
[1743781776172,5.62314826,1800.6,1800.1,5.55523]
[1743781776480,5.555,1800.2,1799.8,5.55606]
[1743781776667,6.36538,1800.5,1800.0,5.55536]
[1743781776877,0.8112,1800.5,1800.0,5.55536]
[1743781777051,0.88063269,1800.5,1799.7,0.40618681]
[1743781777248,0.8055,1800.8,1800.4,5.55432]
[1743781777478,0.8055,1800.8,1800.5,5.55396]
[1743781777678,0.11484324,1800.7,1800.5,5.55387]
[1743781777860,0.11484324,1800.7,1800.6,5.5537]
[1743781778256,0.05,1800.9,1800.8,5.55308]
[1743781778654,0.15370081,1800.9,1800.4,6.863702]
[1743781778894,0.05,1800.9,1800.6,5.55359]
[1743781779078,0.10405907,1800.8,1800.5,6.2403402]
[1743781779285,0.10405907,1800.8,1800.5,0.6863702]
[1743781779483,0.05,1800.9,1800.5,0.6863702]
[1743781779484,0.05,1800.9,1800.8,5.55308]
[1743781779896,0.15444284,1800.9,1800.8,5.55308]
[1743781780084,0.05,1800.9,1800.8,5.55308]
[1743781780287,0.15485693,1800.9,1800.6,5.55358]
[1743781780508,0.05,1800.9,1800.6,5.55354]
[1743781780809,0.10462848,1800.8,1800.4,0.754]
[1743781780975,0.05,1800.9,1800.8,5.55308]
[1743781781174,0.1562268,1800.9,1800.8,5.55308]
[1743781781420,0.05,1800.9,1800.8,5.55308]
[1743781783064,0.05,1800.9,1800.6,5.55358]
[1743781783312,0.05,1800.9,1800.6,11.10714]
[1743781783513,0.05,1800.9,1800.6,5.55351]
[1743781783804,0.05,1800.9,1800.7,5.55337]
[1743781784001,0.05,1800.9,1800.6,5.55351]
[1743781784366,0.05,1800.9,1800.7,5.55316]
[1743781784703,0.119408,1800.9,1800.5,5.55383]
[1743781784912,0.05,1800.9,1800.7,5.55329]
[1743781785406,0.05,1800.9,1800.8,5.55308]
[1743781785703,0.05,1800.9,1800.7,5.55324]
[1743781785922,0.05,1800.9,1800.6,5.55367]
[1743781786062,5.55339,1800.8,1800.1,0.8312]
[1743781786265,5.55339,1800.8,1800.2,5.55462]
[1743781786266,0.7645,1800.6,1800.2,5.55462]
[1743781786564,5.62372605,1800.5,1800.0,5.55543]
[1743781787101,5.62366605,1800.5,1800.0,5.55543]
[1743781787270,0.06942605,1800.5,1800.1,5.55523]
[1743781787471,0.83393767,1800.6,1800.3,5.5546]
[1743781787671,0.7524,1800.8,1800.5,5.55401]
[1743781787894,0.7524,1800.8,1800.6,5.55366]
[1743781788066,0.7524,1800.8,1800.4,5.55413]
[1743781788067,6.30549,1800.8,1800.4,5.55413]
[1743781788268,0.06941976,1800.7,1800.3,5.55462]
[1743781788464,5.62311976,1800.7,1800.2,5.55476]
[1743781789105,5.62311976,1800.7,1800.2,11.10953]
[1743781789383,0.05,1800.9,1800.7,5.55339]
[1743781789535,0.05,1800.9,1800.8,5.55308]
[1743781789692,0.05,1800.9,1800.8,5.55208]
[1743781790614,0.05,1800.9,1800.7,11.10666]
[1743781790817,0.05,1800.9,1800.7,5.55323]
[1743781791130,0.8271,1800.8,1800.5,5.55386]
[1743781791425,0.8271,1800.8,1800.4,5.55424]
[1743781791612,0.8271,1800.8,1800.4,11.10842]
[1743781791820,0.06941729,1800.7,1800.5,5.55391]
[1743781792015,0.06941729,1800.7,1800.3,5.55462]
[1743781792201,0.06941729,1800.7,1800.1,5.55524]
[1743781792407,0.813,1800.4,1799.9,5.55585]
[1743781792623,0.06943821,1800.3,1799.9,11.11153]
[1743781792934,6.26779603,1800.3,1799.9,5.55584]
[1743781793142,0.71313603,1800.3,1799.6,5.55679]
[1743781793341,0.813,1800.4,1800.1,5.55507]
[1743781793635,0.813,1800.4,1800.2,5.55481]
[1743781793932,7.5966,1800.7,1800.4,5.55411]
[1743781794131,7.5966,1800.7,1800.4,11.1083]
[1743781794441,0.0694223,1800.6,1800.2,5.5549]
[1743781794738,0.0694223,1800.6,1799.7,0.7559]
[1743781794739,0.792,1800.3,1799.9,5.5557]
[1743781795033,5.62446952,1800.2,1799.7,11.11258]
[1743781795236,5.62446952,1800.2,1799.7,5.55624]
[1743781795433,5.55581,1800.0,1799.4,5.55718]
[1743781795624,0.792,1799.8,1799.4,5.55716]
[1743781795823,0.792,1799.8,1799.6,5.55676]
[1743781796036,0.86145583,1800.1,1799.7,5.55622]
[1743781796235,0.86145583,1800.1,1799.4,5.55738]
[1743781796236,5.55567,1800.0,1799.4,5.55738]
[1743781796446,6.34831,1799.8,1799.3,5.55769]
[1743781796604,0.7993,1799.5,1799.0,5.55849]
[1743781796944,0.86877744,1799.5,1798.8,5.55926]
[1743781797099,0.7969,1799.8,1799.7,5.55648]
[1743781797434,0.86635314,1800.1,1799.8,5.55588]
[1743781797606,6.42171314,1800.1,1799.6,11.11334]
[1743781797810,0.86635314,1800.1,1799.7,5.55643]
[1743781798148,1.80849145,1800.1,1799.8,5.55599]
[1743781798298,0.7969,1800.1,1799.9,5.5558]
[1743781798507,0.06944158,1800.0,1799.3,3.0]
[1743781798837,0.86635058,1800.1,1799.8,5.55604]
[1743781798999,0.06944881,1800.0,1799.6,5.55676]
[1743781799206,0.7969,1800.1,1799.8,5.55605]
[1743781799406,0.7969,1800.1,1799.8,5.55596]
[1743781799606,0.7969,1800.1,1799.9,5.55567]
[1743781799907,0.7969,1800.1,1799.8,5.55616]
[1743781800101,0.7969,1800.1,1799.8,5.55599]
[1743781800301,5.55568,1800.0,1799.5,5.55695]
[1743781800542,5.55658,1799.7,1798.8,0.767]
[1743781800745,0.06946912,1799.6,1798.9,5.55895]
[1743781800907,5.55787,1799.3,1798.8,6.32606]
[1743781801109,0.8098,1799.5,1799.2,5.55802]
[1743781801347,0.8098,1799.5,1799.3,5.55759]
[1743781801554,0.7854,1799.9,1799.4,0.555759]
[1743781801883,0.7854,1799.9,1799.8,5.55617]
[1743781802057,0.7854,1800.2,1800.1,5.55497]
[1743781802207,0.7854,1800.5,1799.6,3.0]
[1743781802556,0.85483192,1800.5,1800.2,5.55481]
[1743781802720,5.55639,1799.8,1799.0,0.7718]
[1743781802909,0.87125367,1799.7,1799.3,5.55759]
[1743781803115,6.42787367,1799.7,1799.2,5.5579]
[1743781803315,0.87125367,1799.7,1799.3,5.55769]
[1743781803514,5.55745,1799.4,1798.9,11.11751]
[1743781803748,0.8029,1799.5,1799.2,5.5579]
[1743781803947,0.8029,1799.5,1799.2,5.558]
[1743781804241,0.0694656,1799.4,1798.5,5.67419909]
[1743781804407,1.63921108,1799.5,1799.1,5.5582]
[1743781804613,7.19654108,1799.5,1799.0,5.55863]
[1743781804846,12.75385108,1799.5,1799.0,5.55863]
[1743781805043,12.68437747,1799.5,1799.0,5.55863]
[1743781805345,6.82590775,1799.4,1798.9,5.55887]
[1743781805534,0.06947807,1799.3,1798.8,5.55922]
[1743781805741,6.38563,1799.2,1798.7,5.55943]
[1743781805940,6.86648813,1799.1,1798.4,5.5602]
[1743781806258,0.68664881,1799.0,1798.7,5.55944]
[1743781806470,6.86648813,1799.1,1798.9,5.5588]
[1743781806761,0.8275,1799.2,1799.0,5.55864]
[1743781807067,0.8275,1799.2,1799.0,5.55844]
[1743781807424,0.8727804,1799.4,1799.1,5.55815]
[1743781807624,0.8033,1799.4,1799.2,5.55789]
[1743781807946,0.7555,1799.8,1799.4,5.5574]
[1743781808144,5.69130814,1799.8,1799.4,5.5574]
[1743781808322,11.24759814,1799.8,1799.3,5.55771]
[1743781808551,11.178136,1799.8,1799.3,5.55758]
[1743781808848,5.55727,1799.5,1798.9,5.55874]
[1743781809007,0.87997469,1799.4,1799.0,11.11728]
[1743781809207,0.06947469,1799.4,1799.3,5.55771]
[1743781809408,0.7587,1800.0,1799.7,5.55636]
[1743781809654,6.31446,1800.0,1799.5,5.55684]
[1743781809823,0.7587,1800.0,1799.8,5.55604]
[1743781810026,0.82815019,1800.3,1800.0,5.55544]
[1743781810344,0.06944,1800.2,1799.8,5.55613]
[1743781810557,0.06944,1800.2,1799.4,3.0]
[1743781810865,5.55507,1800.2,1799.4,5.55718]
[1743781811156,5.62485618,1800.1,1799.6,5.55674]
[1743781811311,5.55627,1799.8,1799.3,5.55757]
[1743781811660,0.06946257,1799.7,1799.2,5.55799]
[1743781811864,5.55764,1799.4,1798.9,5.55869]
[1743781812143,5.62719485,1799.3,1798.7,5.55941]
[1743781812331,6.31698,1799.2,1798.7,5.55941]
[1743781812538,0.06948712,1799.1,1798.7,5.55941]
[1743781812912,0.06948712,1799.1,1798.7,11.11882]
[1743781813308,0.06948712,1799.1,1798.7,5.55941]
[1743781813718,0.06948712,1799.1,1798.6,5.55971]
[1743781814048,0.06948712,1799.1,1798.7,5.55942]
[1743781814244,1.32782338,1799.1,1798.3,3.0]
[1743781814449,0.06948712,1799.1,1798.7,5.55955]
[1743781814647,0.06948712,1799.1,1798.8,5.55914]
[1743781814828,0.82829057,1799.2,1798.8,5.55923]
[1743781815214,0.82829057,1799.2,1798.8,11.11833]
[1743781815414,0.82829057,1799.2,1798.5,5.56018]
[1743781815415,0.7588,1799.2,1798.3,8.56074]
[1743781815611,0.82827858,1799.2,1798.6,5.55957]
[1743781815837,0.82827858,1799.2,1798.4,9.416274]
[1743781816014,0.82827858,1799.2,1798.8,11.11826]
[1743781816218,0.82827858,1799.2,1798.4,0.856074]
[1743781816462,5.55833,1799.1,1798.6,5.5597]
[1743781816620,5.55833,1799.1,1798.6,5.55969]
[1743781816621,6.18401706,1799.0,1798.6,5.55969]
[1743781816956,0.62532706,1799.0,1798.6,5.55969]
[1743781817160,0.06949406,1799.0,1798.9,5.55895]
[1743781817320,0.0694878,1799.1,1798.8,5.55909]
[1743781817674,5.6280178,1799.1,1798.7,5.55956]
[1743781817828,0.0694878,1799.1,1798.8,5.55925]
[1743781818034,0.0694878,1799.1,1798.9,5.55885]
[1743781818248,0.0694878,1799.1,1798.8,5.55925]
[1743781818476,0.0694878,1799.1,1798.2,0.7543]
[1743781818477,5.55947,1798.8,1798.2,0.7543]
[1743781818667,5.55947,1798.8,1798.1,0.05]
[1743781818668,0.7538,1798.6,1798.1,0.05]
[1743781818952,6.37461,1798.2,1798.1,0.05]
[1743781819111,9.44413332,1798.2,1798.1,0.05]
[1743781819562,9.99413332,1798.2,1798.1,0.05]
[1743781819717,9.44413332,1798.2,1798.1,0.05]
[1743781819915,3.88302332,1798.2,1798.1,0.05]
[1743781820149,0.88302332,1798.2,1798.1,0.05]
[1743781820534,0.8135,1798.2,1798.1,0.05]
[1743781820751,0.8135,1798.2,1798.1,5.61142]
[1743781820930,0.0695196,1798.4,1798.1,0.05]
[1743781821458,5.56081,1798.3,1798.1,0.05]
[1743781821661,0.06952249,1798.2,1798.1,0.05]
[1743781821959,0.06952105,1798.3,1798.1,0.05]
[1743781822160,0.7773,1798.2,1798.1,0.05]
[1743781822362,0.7773,1798.2,1798.1,5.61142]
[1743781822665,0.89101277,1798.4,1798.1,0.05]
[1743781822956,0.89101277,1798.4,1798.1,5.61142]
[1743781823177,0.89101277,1798.4,1798.1,0.05]
[1743781823521,5.56111,1798.2,1798.1,0.05]
[1743781823830,1.96911948,1798.2,1798.1,5.61142]
[1743781824154,0.7874,1798.2,1798.1,0.05]
[1743781824535,6.34851,1798.2,1798.1,0.05]
[1743781824964,7.5864,1798.2,1798.1,0.05]
[1743781825167,13.14751,1798.2,1798.1,0.05]
[1743781825386,15.018355,1798.2,1798.1,0.05]
[1743781825674,23.01731099,1798.2,1798.1,0.05]
[1743781825836,23.01731099,1798.2,1796.8,0.7696]
[1743781826033,0.7573,1797.3,1797.0,5.56463]
[1743781826233,0.7573,1797.6,1797.2,5.56421]
[1743781826553,0.7684,1797.9,1797.3,6.120011]
[1743781826737,0.06953922,1797.8,1797.4,5.56341]
[1743781826959,0.06953922,1797.8,1797.6,5.56284]
[1743781827162,0.83793419,1797.9,1797.7,5.56235]
[1743781827401,0.7684,1797.9,1797.7,5.56235]
[1743781827563,0.7684,1797.9,1797.8,5.56235]
[1743781827871,0.06953199,1798.1,1797.9,5.56202]
[1743781828201,1.14758947,1798.6,1797.9,0.556202]
[1743781828412,0.2895633,1798.6,1798.5,5.56018]
[1743781828712,0.85799319,1799.0,1798.4,5.56027]
[1743781829013,5.55946,1798.8,1798.3,5.56078]
[1743781829308,5.56006,1798.6,1798.1,6.33144]
[1743781829517,0.88780983,1798.5,1798.4,5.56049]
[1743781829683,0.8183,1798.5,1798.1,5.5614]
[1743781830018,0.06950983,1798.4,1798.1,5.5614]
[1743781830183,0.06950983,1798.4,1798.0,5.56171]
[1743781830394,0.71431081,1798.4,1797.9,5.56192]
[1743781830747,0.71431081,1798.4,1797.8,11.12435]
[1743781830748,5.56094,1798.3,1797.8,11.12435]
[1743781830937,5.63065525,1798.2,1797.7,11.12511]
[1743781831110,5.63065525,1798.2,1797.8,5.56235]
[1743781831313,0.7742,1798.1,1797.8,5.56219]
[1743781831610,0.7742,1798.1,1797.6,5.56281]
[1743781831777,0.7742,1798.1,1797.7,5.56254]
[1743781831971,0.06952407,1798.0,1797.4,5.56347]
[1743781832172,0.06952407,1798.0,1797.4,5.56335]
[1743781832372,11.12447,1797.9,1797.4,5.56335]
[1743781832606,5.63200875,1797.8,1797.4,5.56335]
[1743781832808,0.06953875,1797.8,1797.4,11.12674]
[1743781833105,0.06953875,1797.8,1797.4,5.56357]
[1743781833309,6.19526463,1797.8,1797.3,11.12758]
[1743781833609,0.8125,1797.7,1797.3,5.56372]
[1743781833807,11.19591532,1797.6,1797.1,11.12859]
[1743781834110,0.06954532,1797.6,1797.2,5.56406]
[1743781834409,13.17427,1797.7,1797.2,5.56406]
[1743781834410,7.6115,1797.7,1797.5,5.5632]
[1743781834569,6.799,1797.7,1797.6,5.56297]
[1743781834773,6.799,1797.7,1797.5,5.5632]
[1743781835003,6.799,1797.7,1797.5,5.56317]
[1743781835395,0.06953718,1797.6,1797.3,5.56386]
[1743781835596,0.74943718,1797.6,1797.3,5.56386]
[1743781835796,0.8006,1797.5,1796.9,0.7597]
[1743781836001,0.8701568,1797.5,1797.2,5.5641]
[1743781836175,0.8006,1797.5,1797.3,5.56385]
[1743781836377,0.8006,1797.5,1797.4,5.56359]
[1743781836698,0.06954864,1797.6,1797.3,11.12757]
[1743781836896,0.7564035,1797.6,1797.2,5.56407]
[1743781837095,0.7564035,1797.6,1797.3,5.56389]
[1743781837300,0.8142,1797.8,1797.1,11.12904]
[1743781837500,0.06953473,1798.0,1797.7,5.56266]
[1743781837710,0.06952825,1798.1,1797.9,5.56204]
[1743781837912,4.44895599,1798.8,1798.3,5.56059]
[1743781837913,12.76989491,1798.8,1798.3,5.56059]
[1743781838076,0.7937,1798.7,1798.5,5.56018]
[1743781838384,5.559,1798.9,1798.0,5.56164]
[1743781838385,0.82,1798.9,1798.3,5.5608]
[1743781838590,0.82,1798.9,1798.8,5.55926]
[1743781838786,5.55939,1798.8,1798.3,5.5608]
[1743781839003,0.8047,1799.0,1798.1,5.5612]
[1743781839202,0.8047,1798.6,1798.2,5.56094]
[1743781839402,5.56049,1798.5,1798.0,5.56148]
[1743781839601,0.556049,1798.4,1798.1,5.56134]
[1743781839806,0.06951436,1798.3,1798.0,5.56158]
[1743781840000,0.06951516,1798.4,1798.1,5.56124]
[1743781840179,0.06951516,1798.4,1798.0,5.5617]
[1743781840380,0.06951516,1798.4,1798.1,5.5613]
[1743781840610,3.06951505,1798.5,1798.2,11.1218]
[1743781840810,0.87420959,1798.6,1798.4,5.56033]
[1743781841011,6.8,1798.7,1798.5,5.56018]
[1743781841215,6.8,1798.7,1798.5,5.56002]
[1743781841416,6.8,1798.7,1798.6,5.55987]
[1743781841591,0.8229,1798.9,1798.8,5.55926]
[1743781841918,0.8229,1798.9,1798.6,11.11955]
[1743781842115,0.8229,1799.2,1798.9,5.55865]
[1743781842321,5.55721,1799.5,1799.1,5.55833]
[1743781842322,0.8229,1799.5,1799.1,5.55833]
[1743781842623,0.06947487,1799.4,1798.9,5.55886]